[Event "Titled Tuesday Blitz January 10 Late 2023"]
[White "Seletsky, Grigory"]
[Black "Kobalia, Mikhail"]
[WhiteFideId "14112191"]
[BlackFideId "4119150"]
[WhiteElo "2259"]
[BlackElo "2578"]
[Result "1/2-1/2"]
[Round "01"]
[TimeControl "180+2"]
[Date "2023.01.10"]
[WhiteClock "0:00:13"]
[BlackClock "0:00:06"]

1. e4 {[%clk 0:00:00]}  c5 {[%clk 0:00:00]} 2. Nc3 {[%clk 0:02:57]}  e6 {[%clk 0:02:59]} 3. Nf3 {[%clk 0:02:55]}  a6 {[%clk 0:02:57]} 4. a4 {[%clk 0:02:53]}  Nc6 {[%clk 0:02:57]} 5. d3 {[%clk 0:02:53]}  g6 {[%clk 0:02:56]} 6. g3 {[%clk 0:02:46]}  Bg7 {[%clk 0:02:55]} 7. Bg2 {[%clk 0:02:45]}  Nge7 {[%clk 0:02:55]} 8. h4 {[%clk 0:02:46]}  h5 {[%clk 0:02:56]} 9. Bg5 {[%clk 0:02:42]}  d6 {[%clk 0:02:54]} 10. O-O {[%clk 0:02:40]}  O-O {[%clk 0:02:49]} 11. Qd2 {[%clk 0:02:40]}  e5 {[%clk 0:02:49]} 12. Bh6 {[%clk 0:02:37]}  Nd4 {[%clk 0:02:45]} 13. Bxg7 {[%clk 0:02:33]}  Kxg7 {[%clk 0:02:43]} 14. Nxd4 {[%clk 0:02:32]}  cxd4 {[%clk 0:02:44]} 15. Ne2 {[%clk 0:02:31]}  f6 {[%clk 0:02:44]} 16. c3 {[%clk 0:02:26]}  dxc3 {[%clk 0:02:37]} 17. bxc3 {[%clk 0:02:25]}  Be6 {[%clk 0:01:58]} 18. d4 {[%clk 0:02:22]}  Rc8 {[%clk 0:01:55]} 19. f4 {[%clk 0:02:21]}  Bc4 {[%clk 0:01:53]} 20. Rf2 {[%clk 0:02:11]}  Bxe2 {[%clk 0:01:46]} 21. Rxe2 {[%clk 0:02:11]}  Qa5 {[%clk 0:01:40]} 22. Ra3 {[%clk 0:02:10]}  Rc7 {[%clk 0:01:39]} 23. Qb2 {[%clk 0:02:05]}  Rfc8 {[%clk 0:01:27]} 24. Rb3 {[%clk 0:02:02]}  Rxc3 {[%clk 0:01:23]} 25. Rxb7 {[%clk 0:02:01]}  R8c7 {[%clk 0:01:14]} 26. dxe5 {[%clk 0:01:58]}  dxe5 {[%clk 0:01:14]} 27. Kh2 {[%clk 0:01:52]}  Qc5 {[%clk 0:01:14]} 28. Qb6 {[%clk 0:01:42]}  Qxb6 {[%clk 0:01:03]} 29. Rxb6 {[%clk 0:01:28]}  a5 {[%clk 0:00:54]} 30. fxe5 {[%clk 0:01:27]}  fxe5 {[%clk 0:00:50]} 31. Rb5 {[%clk 0:01:23]}  R3c5 {[%clk 0:00:49]} 32. Reb2 {[%clk 0:01:16]}  Nc8 {[%clk 0:00:47]} 33. Rxc5 {[%clk 0:01:12]}  Rxc5 {[%clk 0:00:46]} 34. Rb7+ {[%clk 0:00:59]}  Kf6 {[%clk 0:00:45]} 35. Ra7 {[%clk 0:01:00]}  Nd6 {[%clk 0:00:42]} 36. Ra6 {[%clk 0:00:57]}  Ke7 {[%clk 0:00:41]} 37. Ra7+ {[%clk 0:00:54]}  Kf8 {[%clk 0:00:40]} 38. Ra6 {[%clk 0:00:52]}  Ke7 {[%clk 0:00:23]} 39. Ra7+ {[%clk 0:00:51]}  Ke6 {[%clk 0:00:15]} 40. Ra6 {[%clk 0:00:50]}  Rc2 {[%clk 0:00:12]} 41. Kg1 {[%clk 0:00:40]}  Ke7 {[%clk 0:00:10]} 42. Rxa5 {[%clk 0:00:33]}  Nc4 {[%clk 0:00:08]} 43. Rc5 {[%clk 0:00:32]}  Kd6 {[%clk 0:00:07]} 44. Rc8 {[%clk 0:00:29]}  Rc1+ {[%clk 0:00:07]} 45. Kh2 {[%clk 0:00:27]}  Rc2 {[%clk 0:00:06]} 46. a5 {[%clk 0:00:26]}  Kd7 {[%clk 0:00:06]} 47. Rc5 {[%clk 0:00:16]}  Kd6 {[%clk 0:00:06]} 48. Rc8 {[%clk 0:00:15]}  Kd7 {[%clk 0:00:06]} 49. Rc5 {[%clk 0:00:14]}  Kd6 {[%clk 0:00:06]} 50. Rc8 {[%clk 0:00:13]} 1/2-1/2


[Site "https://www.chess.com"]

[Event "Titled Tuesday Blitz January 10 Late 2023"]
[White "Mikaelyan, Arman"]
[Black "Stanojevic, Ilija"]
[WhiteFideId "13304852"]
[BlackFideId "959995"]
[WhiteElo "2523"]
[BlackElo "2142"]
[Result "1-0"]
[Round "01"]
[TimeControl "180+2"]
[Date "2023.01.10"]
[WhiteClock "0:01:03"]
[BlackClock "0:01:50"]

1. d4 {[%clk 0:00:00]}  d5 {[%clk 0:00:00]} 2. Nf3 {[%clk 0:01:22]}  Nf6 {[%clk 0:02:42]} 3. Bf4 {[%clk 0:01:21]}  c5 {[%clk 0:02:41]} 4. e3 {[%clk 0:01:22]}  Nc6 {[%clk 0:02:42]} 5. Nbd2 {[%clk 0:01:22]}  e6 {[%clk 0:02:42]} 6. c3 {[%clk 0:01:22]}  Bd6 {[%clk 0:02:41]} 7. Bg3 {[%clk 0:01:20]}  Qc7 {[%clk 0:02:41]} 8. dxc5 {[%clk 0:01:18]}  Bxg3 {[%clk 0:02:42]} 9. hxg3 {[%clk 0:01:17]}  a5 {[%clk 0:02:41]} 10. Bd3 {[%clk 0:01:18]}  a4 {[%clk 0:02:33]} 11. e4 {[%clk 0:01:15]}  Qa5 {[%clk 0:02:33]} 12. exd5 {[%clk 0:01:13]}  Nxd5 {[%clk 0:02:25]} 13. Ne4 {[%clk 0:01:10]}  O-O {[%clk 0:02:26]} 14. Rxh7 {[%clk 0:01:08]}  Kxh7 {[%clk 0:02:07]} 15. Nfg5+ {[%clk 0:01:07]}  Kh6 {[%clk 0:01:50]} 16. Qg4 {[%clk 0:01:07]}  f5 {[%clk 0:01:50]} 17. Qh4+ {[%clk 0:01:04]}  Kg6 {[%clk 0:01:50]} 18. Qh7# {[%clk 0:01:03]} 1-0


[Site "https://www.chess.com"]

[Event "Titled Tuesday Blitz January 10 Late 2023"]
[White "Remolar Gallen, Jose"]
[Black "Fernandez Guillen, Ernesto J."]
[WhiteFideId "2215187"]
[BlackFideId "3512428"]
[WhiteElo "2285"]
[BlackElo "2477"]
[Result "0-1"]
[Round "01"]
[TimeControl "180+2"]
[Date "2023.01.10"]
[WhiteClock "0:01:37"]
[BlackClock "0:01:44"]

1. d4 {[%clk 0:00:00]}  Nf6 {[%clk 0:00:00]} 2. c4 {[%clk 0:02:50]}  g6 {[%clk 0:02:58]} 3. Nc3 {[%clk 0:02:50]}  Bg7 {[%clk 0:02:53]} 4. e4 {[%clk 0:02:49]}  d6 {[%clk 0:02:47]} 5. f3 {[%clk 0:02:48]}  O-O {[%clk 0:02:47]} 6. Be3 {[%clk 0:02:48]}  e5 {[%clk 0:02:47]} 7. d5 {[%clk 0:02:48]}  Nbd7 {[%clk 0:02:45]} 8. Qd2 {[%clk 0:02:46]}  a5 {[%clk 0:02:44]} 9. h4 {[%clk 0:02:45]}  Nh5 {[%clk 0:02:43]} 10. Nge2 {[%clk 0:02:42]}  f5 {[%clk 0:02:43]} 11. g4 {[%clk 0:02:40]}  fxg4 {[%clk 0:02:38]} 12. fxg4 {[%clk 0:02:36]}  Nf4 {[%clk 0:02:38]} 13. O-O-O {[%clk 0:02:37]}  Nf6 {[%clk 0:02:37]} 14. Nxf4 {[%clk 0:02:27]}  exf4 {[%clk 0:02:29]} 15. Bxf4 {[%clk 0:02:18]}  Nxg4 {[%clk 0:02:27]} 16. h5 {[%clk 0:02:19]}  Rxf4 {[%clk 0:02:16]} 17. hxg6 {[%clk 0:02:04]}  Rf2 {[%clk 0:02:14]} 18. gxh7+ {[%clk 0:02:01]}  Kh8 {[%clk 0:02:13]} 19. Qd3 {[%clk 0:01:48]}  Qg5+ {[%clk 0:02:12]} 20. Kb1 {[%clk 0:01:48]}  Ne5 {[%clk 0:02:09]} 21. Qd4 {[%clk 0:01:47]}  Qf6 {[%clk 0:02:09]} 22. Be2 {[%clk 0:01:43]}  Bg4 {[%clk 0:01:48]} 23. Rdf1 {[%clk 0:01:37]}  Rf8 {[%clk 0:01:44]} 0-1


[Site "https://www.chess.com"]

[Event "Titled Tuesday Blitz January 10 Late 2023"]
[White "Boruchovsky, Avital"]
[Black "Rengifo Blancas, Renzo Jhonathan"]
[WhiteFideId "2800055"]
[BlackFideId "3807185"]
[WhiteElo "2539"]
[BlackElo "2131"]
[Result "1-0"]
[Round "01"]
[TimeControl "180+2"]
[Date "2023.01.10"]
[WhiteClock "0:00:08"]
[BlackClock "0:00:21"]

1. d4 {[%clk 0:00:00]}  d5 {[%clk 0:00:00]} 2. c4 {[%clk 0:02:59]}  c6 {[%clk 0:02:59]} 3. Nf3 {[%clk 0:02:57]}  Nf6 {[%clk 0:02:59]} 4. Qc2 {[%clk 0:02:55]}  g6 {[%clk 0:02:59]} 5. e3 {[%clk 0:02:54]}  Bg7 {[%clk 0:02:58]} 6. Bd3 {[%clk 0:02:48]}  O-O {[%clk 0:02:57]} 7. O-O {[%clk 0:02:47]}  dxc4 {[%clk 0:02:57]} 8. Qxc4 {[%clk 0:02:45]}  Nbd7 {[%clk 0:02:55]} 9. b4 {[%clk 0:02:41]}  Nb6 {[%clk 0:02:55]} 10. Qc2 {[%clk 0:02:36]}  a5 {[%clk 0:02:54]} 11. bxa5 {[%clk 0:02:34]}  Nbd5 {[%clk 0:02:54]} 12. Bd2 {[%clk 0:02:32]}  Qd6 {[%clk 0:02:54]} 13. a3 {[%clk 0:02:31]}  Nd7 {[%clk 0:02:48]} 14. e4 {[%clk 0:02:14]}  Nc7 {[%clk 0:02:39]} 15. Bb4 {[%clk 0:02:12]}  Qf6 {[%clk 0:02:25]} 16. Nc3 {[%clk 0:02:11]}  e5 {[%clk 0:02:12]} 17. Bxf8 {[%clk 0:01:53]}  Bxf8 {[%clk 0:02:12]} 18. d5 {[%clk 0:01:50]}  Nc5 {[%clk 0:02:12]} 19. dxc6 {[%clk 0:01:42]}  bxc6 {[%clk 0:02:09]} 20. Bc4 {[%clk 0:01:41]}  Bg4 {[%clk 0:02:09]} 21. Nd2 {[%clk 0:01:29]}  N7e6 {[%clk 0:02:08]} 22. Ne2 {[%clk 0:01:26]}  Bxe2 {[%clk 0:02:05]} 23. Bxe2 {[%clk 0:01:02]}  Nd4 {[%clk 0:01:58]} 24. Qc4 {[%clk 0:01:03]}  Rxa5 {[%clk 0:01:59]} 25. a4 {[%clk 0:01:02]}  Qe6 {[%clk 0:01:55]} 26. Rfe1 {[%clk 0:00:46]}  Qxc4 {[%clk 0:01:52]} 27. Nxc4 {[%clk 0:00:42]}  Rxa4 {[%clk 0:01:41]} 28. Rxa4 {[%clk 0:00:43]}  Nxa4 {[%clk 0:01:41]} 29. Bf1 {[%clk 0:00:43]}  f6 {[%clk 0:01:42]} 30. Ra1 {[%clk 0:00:39]}  Nc5 {[%clk 0:01:40]} 31. f3 {[%clk 0:00:39]}  Nce6 {[%clk 0:01:39]} 32. Ra8 {[%clk 0:00:36]}  Kg7 {[%clk 0:01:30]} 33. Kf2 {[%clk 0:00:35]}  Bc5 {[%clk 0:01:30]} 34. g3 {[%clk 0:00:20]}  Nb5+ {[%clk 0:01:29]} 35. Kg2 {[%clk 0:00:21]}  Nbd4 {[%clk 0:01:23]} 36. Bd3 {[%clk 0:00:20]}  h5 {[%clk 0:01:21]} 37. Na5 {[%clk 0:00:15]}  h4 {[%clk 0:01:20]} 38. Nb7 {[%clk 0:00:15]}  Bb6 {[%clk 0:01:20]} 39. Nd6 {[%clk 0:00:15]}  h3+ {[%clk 0:01:15]} 40. Kxh3 {[%clk 0:00:15]}  Nxf3 {[%clk 0:01:09]} 41. Bc4 {[%clk 0:00:15]}  Neg5+ {[%clk 0:01:09]} 42. Kg2 {[%clk 0:00:14]}  Nd2 {[%clk 0:01:08]} 43. Ne8+ {[%clk 0:00:14]}  Kh6 {[%clk 0:00:59]} 44. Bd3 {[%clk 0:00:11]}  Ndxe4 {[%clk 0:00:56]} 45. Bxe4 {[%clk 0:00:10]}  Nxe4 {[%clk 0:00:55]} 46. Ra6 {[%clk 0:00:11]}  Bd8 {[%clk 0:00:56]} 47. Rxc6 {[%clk 0:00:11]}  g5 {[%clk 0:00:48]} 48. Kf3 {[%clk 0:00:12]}  Nd2+ {[%clk 0:00:48]} 49. Ke2 {[%clk 0:00:11]}  Ne4 {[%clk 0:00:48]} 50. Ke3 {[%clk 0:00:10]}  Nc5 {[%clk 0:00:48]} 51. Rxc5 {[%clk 0:00:11]}  Bb6 {[%clk 0:00:39]} 52. Nxf6 {[%clk 0:00:10]}  Bxc5+ {[%clk 0:00:39]} 53. Ke4 {[%clk 0:00:06]}  Bg1 {[%clk 0:00:40]} 54. Kxe5 {[%clk 0:00:07]}  Kg6 {[%clk 0:00:33]} 55. Ng4 {[%clk 0:00:06]}  Kh5 {[%clk 0:00:33]} 56. Kf5 {[%clk 0:00:06]}  Bc5 {[%clk 0:00:33]} 57. Nf6+ {[%clk 0:00:06]}  Kh6 {[%clk 0:00:30]} 58. h3 {[%clk 0:00:06]}  Bb6 {[%clk 0:00:30]} 59. Ne4 {[%clk 0:00:03]}  Bd8 {[%clk 0:00:27]} 60. g4 {[%clk 0:00:03]}  Be7 {[%clk 0:00:27]} 61. Ke6 {[%clk 0:00:03]}  Bd8 {[%clk 0:00:27]} 62. Kf7 {[%clk 0:00:04]}  Ba5 {[%clk 0:00:28]} 63. Nd6 {[%clk 0:00:04]}  Bd2 {[%clk 0:00:26]} 64. Nf5+ {[%clk 0:00:04]}  Kh7 {[%clk 0:00:24]} 65. Kf6 {[%clk 0:00:05]}  Bf4 {[%clk 0:00:23]} 66. Nd4 {[%clk 0:00:05]}  Kh6 {[%clk 0:00:22]} 67. Nf5+ {[%clk 0:00:05]}  Kh7 {[%clk 0:00:20]} 68. Ng7 {[%clk 0:00:04]}  Bc1 {[%clk 0:00:20]} 69. Ne6 {[%clk 0:00:03]}  Kh6 {[%clk 0:00:19]} 70. Nd8 {[%clk 0:00:03]}  Bb2+ {[%clk 0:00:19]} 71. Kf5 {[%clk 0:00:04]}  Bc1 {[%clk 0:00:19]} 72. Nf7+ {[%clk 0:00:04]}  Kg7 {[%clk 0:00:20]} 73. Nxg5 {[%clk 0:00:04]}  Kh6 {[%clk 0:00:19]} 74. Ne6 {[%clk 0:00:05]}  Kh7 {[%clk 0:00:20]} 75. h4 {[%clk 0:00:06]}  Bb2 {[%clk 0:00:19]} 76. g5 {[%clk 0:00:06]}  Ba3 {[%clk 0:00:20]} 77. h5 {[%clk 0:00:07]}  Be7 {[%clk 0:00:19]} 78. Nf4 {[%clk 0:00:07]}  Bf8 {[%clk 0:00:20]} 79. Ng6 {[%clk 0:00:07]}  Bg7 {[%clk 0:00:20]} 80. Ne5 {[%clk 0:00:07]}  Bf8 {[%clk 0:00:20]} 81. Ng4 {[%clk 0:00:07]}  Bg7 {[%clk 0:00:18]} 82. g6+ {[%clk 0:00:08]}  Kg8 {[%clk 0:00:19]} 83. h6 {[%clk 0:00:08]}  Bc3 {[%clk 0:00:16]} 84. Nf6+ {[%clk 0:00:08]}  Bxf6 {[%clk 0:00:16]} 85. Kxf6 {[%clk 0:00:07]}  Kh8 {[%clk 0:00:15]} 86. g7+ {[%clk 0:00:08]}  Kh7 {[%clk 0:00:16]} 87. Kf7 {[%clk 0:00:06]}  Kxh6 {[%clk 0:00:17]} 88. g8=Q {[%clk 0:00:06]}  Kh5 {[%clk 0:00:18]} 89. Qg6+ {[%clk 0:00:06]}  Kh4 {[%clk 0:00:19]} 90. Kf6 {[%clk 0:00:07]}  Kh3 {[%clk 0:00:19]} 91. Kf5 {[%clk 0:00:07]}  Kh2 {[%clk 0:00:20]} 92. Kf4 {[%clk 0:00:08]}  Kh1 {[%clk 0:00:21]} 93. Kf3 {[%clk 0:00:08]} 1-0


[Site "https://www.chess.com"]

[Event "Titled Tuesday Blitz January 10 Late 2023"]
[White "Bon, Michael"]
[Black "Jaracz, Pawel"]
[WhiteFideId "620696"]
[BlackFideId "1102222"]
[WhiteElo "2394"]
[BlackElo "2467"]
[Result "0-1"]
[Round "01"]
[TimeControl "180+2"]
[Date "2023.01.10"]
[WhiteClock "0:00:03"]
[BlackClock "0:00:21"]

1. e4 {[%clk 0:00:00]}  c6 {[%clk 0:00:00]} 2. d4 {[%clk 0:03:00]}  d5 {[%clk 0:02:58]} 3. e5 {[%clk 0:02:59]}  c5 {[%clk 0:02:58]} 4. dxc5 {[%clk 0:03:00]}  e6 {[%clk 0:02:57]} 5. a3 {[%clk 0:02:59]}  Bxc5 {[%clk 0:02:57]} 6. Qg4 {[%clk 0:02:53]}  Ne7 {[%clk 0:02:57]} 7. Nf3 {[%clk 0:02:53]}  O-O {[%clk 0:02:56]} 8. Bd3 {[%clk 0:02:45]}  Nf5 {[%clk 0:02:47]} 9. b4 {[%clk 0:02:44]}  Bb6 {[%clk 0:02:30]} 10. Bg5 {[%clk 0:02:27]}  Qc7 {[%clk 0:02:24]} 11. Bf6 {[%clk 0:02:26]}  Bxf2+ {[%clk 0:02:23]} 12. Kxf2 {[%clk 0:02:23]}  Qb6+ {[%clk 0:01:23]} 13. Ke1 {[%clk 0:01:45]}  Qe3+ {[%clk 0:01:23]} 14. Kd1 {[%clk 0:01:24]}  Qxd3+ {[%clk 0:01:23]} 15. cxd3 {[%clk 0:01:14]}  Ne3+ {[%clk 0:01:23]} 16. Ke2 {[%clk 0:01:03]}  Nxg4 {[%clk 0:01:24]} 17. Bh4 {[%clk 0:01:01]}  Nc6 {[%clk 0:01:24]} 18. d4 {[%clk 0:01:02]}  b6 {[%clk 0:01:18]} 19. Nc3 {[%clk 0:00:57]}  Nh6 {[%clk 0:01:11]} 20. Rhc1 {[%clk 0:00:49]}  Nf5 {[%clk 0:01:06]} 21. Bf2 {[%clk 0:00:41]}  f6 {[%clk 0:01:04]} 22. exf6 {[%clk 0:00:40]}  gxf6 {[%clk 0:00:56]} 23. Nxd5 {[%clk 0:00:28]}  Ba6+ {[%clk 0:00:55]} 24. Kd2 {[%clk 0:00:20]}  Rac8 {[%clk 0:00:48]} 25. Nf4 {[%clk 0:00:19]}  Kf7 {[%clk 0:00:44]} 26. g4 {[%clk 0:00:13]}  Nfe7 {[%clk 0:00:41]} 27. Re1 {[%clk 0:00:11]}  Bc4 {[%clk 0:00:39]} 28. Rac1 {[%clk 0:00:09]}  Bd5 {[%clk 0:00:35]} 29. Nxd5 {[%clk 0:00:09]}  Nxd5 {[%clk 0:00:35]} 30. Bg3 {[%clk 0:00:08]}  Rfd8 {[%clk 0:00:35]} 31. h3 {[%clk 0:00:08]}  h5 {[%clk 0:00:34]} 32. g5 {[%clk 0:00:08]}  Nce7 {[%clk 0:00:28]} 33. h4 {[%clk 0:00:05]}  Nf5 {[%clk 0:00:26]} 34. Bf2 {[%clk 0:00:03]}  Nd6 {[%clk 0:00:26]} 35. gxf6 {[%clk 0:00:03]}  Ne4+ {[%clk 0:00:21]} 0-1


[Site "https://www.chess.com"]

[Event "Titled Tuesday Blitz January 10 Late 2023"]
[White "Goltsev, Dmitry"]
[Black "Kaminski, Victor"]
[WhiteFideId "24176710"]
[BlackFideId "1131630"]
[WhiteElo "2269"]
[BlackElo "2247"]
[Result "1-0"]
[Round "01"]
[TimeControl "180+2"]
[Date "2023.01.10"]
[WhiteClock "0:02:06"]
[BlackClock "0:00:59"]

1. e4 {[%clk 0:00:00]}  c5 {[%clk 0:00:00]} 2. Nf3 {[%clk 0:03:00]}  e6 {[%clk 0:02:57]} 3. d4 {[%clk 0:03:00]}  cxd4 {[%clk 0:02:56]} 4. Nxd4 {[%clk 0:03:00]}  Nf6 {[%clk 0:02:57]} 5. Nc3 {[%clk 0:03:01]}  Nc6 {[%clk 0:02:57]} 6. Be2 {[%clk 0:03:02]}  Bc5 {[%clk 0:02:56]} 7. Nb3 {[%clk 0:03:02]}  Be7 {[%clk 0:02:55]} 8. O-O {[%clk 0:03:02]}  O-O {[%clk 0:02:54]} 9. Be3 {[%clk 0:03:02]}  d5 {[%clk 0:02:53]} 10. exd5 {[%clk 0:03:02]}  Nxd5 {[%clk 0:02:52]} 11. Nxd5 {[%clk 0:03:03]}  Qxd5 {[%clk 0:02:51]} 12. Qxd5 {[%clk 0:03:02]}  exd5 {[%clk 0:02:49]} 13. c3 {[%clk 0:03:02]}  Bf5 {[%clk 0:02:50]} 14. Rad1 {[%clk 0:03:01]}  Rfd8 {[%clk 0:02:45]} 15. Rd2 {[%clk 0:03:02]}  Ne5 {[%clk 0:02:42]} 16. Rfd1 {[%clk 0:02:51]}  Nc4 {[%clk 0:02:18]} 17. Rxd5 {[%clk 0:02:41]}  Rxd5 {[%clk 0:02:06]} 18. Rxd5 {[%clk 0:02:39]}  Be6 {[%clk 0:01:50]} 19. Bxc4 {[%clk 0:02:40]}  Bxd5 {[%clk 0:01:51]} 20. Bxd5 {[%clk 0:02:38]}  Rd8 {[%clk 0:01:50]} 21. Bf3 {[%clk 0:02:39]}  b6 {[%clk 0:01:45]} 22. Nd4 {[%clk 0:02:36]}  Bf6 {[%clk 0:01:44]} 23. h3 {[%clk 0:02:35]}  h6 {[%clk 0:01:36]} 24. Nc6 {[%clk 0:02:34]}  Rd7 {[%clk 0:01:35]} 25. a4 {[%clk 0:02:34]}  Bg5 {[%clk 0:01:34]} 26. Bxg5 {[%clk 0:02:33]}  hxg5 {[%clk 0:01:28]} 27. b4 {[%clk 0:02:32]}  Rd3 {[%clk 0:01:29]} 28. c4 {[%clk 0:02:31]}  Rc3 {[%clk 0:01:25]} 29. Bd5 {[%clk 0:02:31]}  Rc1+ {[%clk 0:01:20]} 30. Kh2 {[%clk 0:02:31]}  Ra1 {[%clk 0:01:18]} 31. a5 {[%clk 0:02:31]}  bxa5 {[%clk 0:01:19]} 32. Nxa5 {[%clk 0:02:29]}  a6 {[%clk 0:01:18]} 33. c5 {[%clk 0:02:29]}  Kf8 {[%clk 0:01:14]} 34. c6 {[%clk 0:02:28]}  Ke7 {[%clk 0:01:11]} 35. Nb3 {[%clk 0:02:15]}  Ra4 {[%clk 0:01:08]} 36. Nc5 {[%clk 0:02:08]}  Rxb4 {[%clk 0:00:59]} 37. c7 {[%clk 0:02:06]} 1-0


[Site "https://www.chess.com"]

[Event "Titled Tuesday Blitz January 10 Late 2023"]
[White "Nasuta, Grzegorz"]
[Black "Golizadeh, Asghar"]
[WhiteFideId "1141686"]
[BlackFideId "12505269"]
[WhiteElo "2552"]
[BlackElo "2455"]
[Result "1-0"]
[Round "01"]
[TimeControl "180+2"]
[Date "2023.01.10"]
[WhiteClock "0:00:15"]
[BlackClock "0:00:02"]

1. e4 {[%clk 0:00:00]}  c5 {[%clk 0:00:00]} 2. Nf3 {[%clk 0:03:00]}  e6 {[%clk 0:02:59]} 3. g3 {[%clk 0:03:00]}  Nc6 {[%clk 0:02:58]} 4. Bg2 {[%clk 0:02:58]}  Nf6 {[%clk 0:02:57]} 5. Qe2 {[%clk 0:02:58]}  e5 {[%clk 0:02:57]} 6. O-O {[%clk 0:02:56]}  Be7 {[%clk 0:02:52]} 7. c3 {[%clk 0:02:55]}  O-O {[%clk 0:02:52]} 8. Na3 {[%clk 0:02:54]}  Re8 {[%clk 0:02:51]} 9. d3 {[%clk 0:02:52]}  d6 {[%clk 0:02:32]} 10. Nc4 {[%clk 0:02:49]}  Be6 {[%clk 0:02:23]} 11. Ne3 {[%clk 0:02:44]}  g6 {[%clk 0:02:23]} 12. Rd1 {[%clk 0:02:42]}  d5 {[%clk 0:02:12]} 13. Ng5 {[%clk 0:02:31]}  d4 {[%clk 0:01:50]} 14. Nxe6 {[%clk 0:02:25]}  fxe6 {[%clk 0:01:39]} 15. Nc4 {[%clk 0:02:25]}  b5 {[%clk 0:01:38]} 16. Nd2 {[%clk 0:02:25]}  dxc3 {[%clk 0:01:36]} 17. bxc3 {[%clk 0:02:23]}  b4 {[%clk 0:01:32]} 18. Bb2 {[%clk 0:02:24]}  bxc3 {[%clk 0:01:33]} 19. Bxc3 {[%clk 0:02:15]}  Nd4 {[%clk 0:01:32]} 20. Bxd4 {[%clk 0:02:16]}  exd4 {[%clk 0:01:33]} 21. Rac1 {[%clk 0:02:14]}  e5 {[%clk 0:01:32]} 22. Rc2 {[%clk 0:01:58]}  Nd7 {[%clk 0:01:13]} 23. Bh3 {[%clk 0:01:57]}  Nf8 {[%clk 0:01:10]} 24. Nb3 {[%clk 0:01:55]}  Qd6 {[%clk 0:01:06]} 25. Rxc5 {[%clk 0:01:55]}  Rab8 {[%clk 0:00:34]} 26. Rdc1 {[%clk 0:01:45]}  Qf6 {[%clk 0:00:22]} 27. Rc6 {[%clk 0:01:38]}  Qg5 {[%clk 0:00:21]} 28. R1c2 {[%clk 0:01:33]}  Bb4 {[%clk 0:00:21]} 29. Ra6 {[%clk 0:01:10]}  Re7 {[%clk 0:00:20]} 30. Bg2 {[%clk 0:01:04]}  Bc3 {[%clk 0:00:18]} 31. h4 {[%clk 0:00:46]}  Qh6 {[%clk 0:00:18]} 32. Bh3 {[%clk 0:00:46]}  Qg7 {[%clk 0:00:18]} 33. Rc1 {[%clk 0:00:46]}  Qf7 {[%clk 0:00:18]} 34. Rf1 {[%clk 0:00:41]}  Reb7 {[%clk 0:00:17]} 35. Kg2 {[%clk 0:00:38]}  Rxb3 {[%clk 0:00:17]} 36. axb3 {[%clk 0:00:33]}  Rxb3 {[%clk 0:00:16]} 37. Qa2 {[%clk 0:00:33]}  Rb7 {[%clk 0:00:17]} 38. Qd5 {[%clk 0:00:33]}  Qxd5 {[%clk 0:00:12]} 39. exd5 {[%clk 0:00:31]}  Kf7 {[%clk 0:00:10]} 40. f4 {[%clk 0:00:32]}  e4 {[%clk 0:00:10]} 41. dxe4 {[%clk 0:00:31]}  d3 {[%clk 0:00:08]} 42. Rd1 {[%clk 0:00:31]}  Rb2+ {[%clk 0:00:09]} 43. Kf3 {[%clk 0:00:30]}  Bd4 {[%clk 0:00:08]} 44. e5 {[%clk 0:00:28]}  d2 {[%clk 0:00:08]} 45. d6 {[%clk 0:00:23]}  Bb6 {[%clk 0:00:04]} 46. Ra3 {[%clk 0:00:20]}  Ne6 {[%clk 0:00:04]} 47. Bxe6+ {[%clk 0:00:17]}  Kxe6 {[%clk 0:00:03]} 48. Rd3 {[%clk 0:00:16]}  Kd7 {[%clk 0:00:04]} 49. R1xd2 {[%clk 0:00:16]}  Bd8 {[%clk 0:00:02]} 50. Rxb2 {[%clk 0:00:15]} 1-0


[Site "https://www.chess.com"]

[Event "Titled Tuesday Blitz January 10 Late 2023"]
[White "Tanenbaum, Zachary"]
[Black "Nathan, Nitish"]
[WhiteFideId "2060850"]
[BlackFideId "30927870"]
[WhiteElo "2261"]
[BlackElo "2071"]
[Result "1-0"]
[Round "01"]
[TimeControl "180+2"]
[Date "2023.01.10"]
[WhiteClock "0:01:17"]
[BlackClock "0:01:29"]

1. e4 {[%clk 0:00:00]}  c5 {[%clk 0:00:00]} 2. Nf3 {[%clk 0:03:00]}  Nc6 {[%clk 0:02:59]} 3. Nc3 {[%clk 0:03:01]}  e5 {[%clk 0:02:58]} 4. Bc4 {[%clk 0:03:00]}  Be7 {[%clk 0:02:50]} 5. d3 {[%clk 0:03:00]}  d6 {[%clk 0:02:48]} 6. Nd2 {[%clk 0:03:00]}  Nf6 {[%clk 0:02:46]} 7. Nf1 {[%clk 0:03:00]}  h5 {[%clk 0:02:43]} 8. Bg5 {[%clk 0:02:59]}  Nd4 {[%clk 0:02:40]} 9. Ne3 {[%clk 0:02:54]}  a6 {[%clk 0:02:38]} 10. a4 {[%clk 0:02:50]}  Rb8 {[%clk 0:02:30]} 11. Bxf6 {[%clk 0:02:48]}  Bxf6 {[%clk 0:02:29]} 12. Ned5 {[%clk 0:02:48]}  b5 {[%clk 0:02:28]} 13. axb5 {[%clk 0:02:48]}  axb5 {[%clk 0:02:26]} 14. Ba2 {[%clk 0:02:42]}  h4 {[%clk 0:02:27]} 15. h3 {[%clk 0:02:30]}  O-O {[%clk 0:02:26]} 16. O-O {[%clk 0:02:28]}  Be6 {[%clk 0:02:25]} 17. Ne2 {[%clk 0:02:25]}  Nxe2+ {[%clk 0:02:20]} 18. Qxe2 {[%clk 0:02:22]}  Bxd5 {[%clk 0:02:19]} 19. Bxd5 {[%clk 0:02:23]}  Qb6 {[%clk 0:02:19]} 20. Qh5 {[%clk 0:02:22]}  c4 {[%clk 0:02:15]} 21. dxc4 {[%clk 0:02:08]}  bxc4 {[%clk 0:02:08]} 22. Bxc4 {[%clk 0:02:02]}  Qxb2 {[%clk 0:02:08]} 23. Bd5 {[%clk 0:02:03]}  Qd4 {[%clk 0:02:08]} 24. Ra3 {[%clk 0:01:57]}  Rb2 {[%clk 0:02:06]} 25. Ra8 {[%clk 0:01:37]}  Rxa8 {[%clk 0:01:35]} 26. Qxf7+ {[%clk 0:01:17]}  Kh8 {[%clk 0:01:29]} 27. Qh5# {[%clk 0:01:17]} 1-0


[Site "https://www.chess.com"]